Workbook

Sheet 附件1
A1: 附件1：
A2: 青岛市即墨区数字装备产业发展服务中心2025年部门预算表
A4: 一、 | B4: 2025年部门预算收支总表
A5: 二、 | B5: 2025年部门预算收入总表
A6: 三、 | B6: 2025年部门预算支出总表
A7: 四、 | B7: 2025年部门预算财政拨款收支总表
A8: 五、 | B8: 2025年部门预算一般公共预算财政拨款支出表
A9: 六、 | B9: 2025年部门预算一般公共预算财政拨款基本支出表 （部门经济分类）
A10: 七、 | B10: 2025年部门预算一般公共预算财政拨款基本支出表 （政府经济分类）
A11: 八、 | B11: 2025年部门预算政府性基金预算财政拨款支出表
A12: 九、 | B12: 2025年部门预算国有资本经营预算财政拨款支出表
A13: 十、 | B13: 2025年部门预算财政拨款“三公”经费支出表
A14: 十一、2025年政府采购预算表

Sheet 1_部门收支总表
A1: 表1：
A2: 2025年部门预算收支总表
A3: 部门：青岛市即墨区数字装备产业发展服务中心 | C3: 预算年度：2025 | D3: 金额单位：万元
A4: 收 入 | C4: 支 出
A5: 项 目 | B5: 2025年预算 | C5: 项 目 | D5: 2025年预算
A6: 一、一般公共预算拨款收入 | B6: 2,299.98 | C6: 一、人员经费 | D6: 416.83
A7: 二、政府性基金预算拨款收入 | C7: 二、公用经费 | D7: 30.15
A8: 三、国有资本经营预算拨款收入 | C8: 三、其他运转类 | D8: 1,100.00
A9: 四、财政专户管理资金收入 | C9: 项目1 园区基本运营及管理 | D9: 1,100.00
A10: 五、事业收入
A11: 六、事业单位经营收入
A12: 七、上级补助收入 | B12: =SUM(B13:B14) -> 0.00
A13: 八、附属单位上缴收入
A14: 九、其他收入
C23: 四、特定目标类 | D23: =SUM(D24:D28) -> 753.00
C24: 项目1 园区工程（排水管网及小学内设等） | D24: 753.00
A29: 本 年 收 入 合 计 | B29: =B6 -> 2,299.98 | C29: 本 年 支 出 合 计 | D29: =D6+D7+D9+D23 -> 2,299.98

Sheet 2-部门预算收入总表
A1: 表2：
A2: 2025年部门预算收入总表
A3: 部门：青岛市即墨区数字装备产业发展服务中心 | J3: 预算年度：2025 | L3: 金额单位：万元
A4: 序号 | B4: 功能分类科目 | D4: 合计 | E4: 本年收入 | M4: 上年结转
B5: 科目编码 | C5: 科目名称 | E5: 小计 | F5: 财政拨款收入 | G5: 财政专户收入 | H5: 事业收入 | I5: 经营收入 | J5: 上级补助收入 | K5: 附属单位上缴收入 | L5: 其他收入
A6: 栏次 | B6: 1 | C6: 2 | D6: 3 | E6: 4 | F6: 5 | G6: 6 | H6: 7 | I6: 8 | J6: 9 | K6: 10 | L6: 11 | M6: 12
A7: 1 | D7: =E7 -> 2,299.98 | E7: =F7 -> 2,299.98 | F7: =F8+F11+F15+F18 -> 2,299.98
A8: 2 | B8: 201 | C8: 一般公共服务支出 | D8: =D9 -> 1,450.92 | E8: =E9 -> 1,450.92 | F8: =F9 -> 1,450.92
A9: 3 | B9: 20103 | C9: 政府办公厅（室）及相关机构事务 | D9: =D10 -> 1,450.92 | E9: =E10 -> 1,450.92 | F9: =F10 -> 1,450.92
A10: 4 | B10: 2010350 | C10: 事业运行 | D10: =E10 -> 1,450.92 | E10: =F10 -> 1,450.92 | F10: 1,450.92
A11: 5 | B11: 208 | C11: 社会保障和就业支出 | D11: 59.46 | E11: 59.46 | F11: =F12 -> 59.46
A12: 6 | B12: 20805 | C12: 行政事业单位养老支出 | D12: 59.46 | E12: 59.46 | F12: =F13+F14 -> 59.46
A13: 7 | B13: 2080505 | C13: 机关事业单位基本养老保险缴费支出 | D13: 39.64 | E13: 39.64 | F13: 39.64
A14: 8 | B14: 2080506 | C14: 机关事业单位职业年金缴费支出 | D14: 19.82 | E14: 19.82 | F14: 19.82
A15: 9 | B15: 212 | C15: 城乡社区支出 | D15: 753.00 | E15: 753.00 | F15: =F16 -> 753.00
A16: 10 | B16: 21203 | C16: 城乡社区公共设施 | D16: 753.00 | E16: 753.00 | F16: =F17 -> 753.00
A17: 11 | B17: 2120399 | C17: 其他城乡社区公共设施支出 | D17: 753.00 | E17: 753.00 | F17: 753.00
A18: 12 | B18: 221 | C18: 住房保障支出 | D18: 36.60 | E18: 36.60 | F18: =F19 -> 36.60
A19: 13 | B19: 22102 | C19: 住房改革支出 | D19: 36.60 | E19: 36.60 | F19: =F20 -> 36.60
A20: 14 | B20: 2210201 | C20: 住房公积金 | D20: 36.60 | E20: 36.60 | F20: 36.60

Sheet 3-部门支出总表
A1: 表3：
A2: 2025年部门预算支出总表
A3: 部门：青岛市即墨区数字装备产业发展服务中心 | F3: 预算年度：2025 | H3: 金额单位：万元
A4: 序号 | B4: 支出功能分类科目 | D4: 本年支出合计 | E4: 基本支出 | F4: 项目支出 | G4: 经营支出 | H4: 上缴上级支出 | I4: 对附属单位补助支出
B5: 科目编码 | C5: 科目名称
A6: 栏次 | B6: 1 | C6: 2 | D6: 3 | E6: 4 | F6: 5 | G6: 6 | H6: 7 | I6: 8
A7: 1 | C7: 合计 | D7: =F7+E7 -> 2,299.98 | E7: =E8+E11+E18 -> 446.98 | F7: =F8+F15 -> 1,853
A8: 2 | B8: 201 | C8: 一般公共服务支出 | D8: =F8+E8 -> 1,450.92 | E8: =E9 -> 350.92 | F8: =F9 -> 1,100.00
A9: 3 | B9: 20103 | C9: 政府办公厅（室）及相关机构事务 | D9: 1,450.92 | E9: =E10 -> 350.92 | F9: =F10 -> 1,100.00
A10: 4 | B10: 2010350 | C10: 事业运行 | D10: 1,450.92 | E10: 350.92 | F10: 1,100.00
A11: 5 | B11: 208 | C11: 社会保障和就业支出 | D11: 59.46 | E11: =E12 -> 59.46 | F11: 0
A12: 6 | B12: 20805 | C12: 行政事业单位养老支出 | D12: 59.46 | E12: =E13+E14 -> 59.46 | F12: 0
A13: 7 | B13: 2080505 | C13: 机关事业单位基本养老保险缴费支出 | D13: 39.64 | E13: 39.64 | F13: 0
A14: 8 | B14: 2080506 | C14: 机关事业单位职业年金缴费支出 | D14: 19.82 | E14: 19.82 | F14: 0
A15: 9 | B15: 212 | C15: 城乡社区支出 | D15: 753.00 | E15: 0 | F15: =F16 -> 753.00
A16: 10 | B16: 21203 | C16: 城乡社区公共设施 | D16: 753.00 | E16: 0 | F16: =F17 -> 753.00
A17: 11 | B17: 2120399 | C17: 其他城乡社区公共设施支出 | D17: 753.00 | E17: 0 | F17: 753.00
A18: 12 | B18: 221 | C18: 住房保障支出 | D18: 36.60 | E18: =E19 -> 36.60 | F18: 0
A19: 13 | B19: 22102 | C19: 住房改革支出 | D19: 36.60 | E19: =E20 -> 36.60 | F19: 0
A20: 14 | B20: 2210201 | C20: 住房公积金 | D20: 36.60 | E20: 36.60 | F20: 0

Sheet 4_财政拨款收支总表
A1: 表4：
A2: 2025年部门预算财政拨款收支总表
A3: 部门：青岛市即墨区数字装备产业发展服务中心 | C3: 预算年度：2025 | D3: 金额单位：万元
A4: 收 入 | C4: 支 出
A5: 项 目 | B5: 2025年预算 | C5: 项 目 | D5: 2025年预算
A6: 一、一般公共预算拨款收入 | B6: 2,299.98 | C6: 一、人员经费 | D6: 416.83
A7: 二、政府性基金预算拨款收入 | C7: 二、公用经费 | D7: 30.15
A8: 三、国有资本经营预算拨款收入 | C8: 三、其他运转类 | D8: 1,100.00
C9: 项目1 园区基本运营及管理 | D9: 1,100.00
B12: =SUM(B13:B14) -> 0.00
C23: 四、特定目标类 | D23: =SUM(D24:D28) -> 753.00
C24: 项目1 园区工程（排水管网及小学内设等） | D24: 753.00
A29: 本 年 收 入 合 计 | B29: =+B6+B12+B15+B16+B17+B18+B19+B20+B21+B22+B7 -> 2299.98 | C29: 本 年 支 出 合 计 | D29: =+D6+D7+D8+D23 -> 2299.98

Sheet 5-一般公共预算支出表
A1: 表5：
A2: 2025年部门预算一般公共预算财政拨款支出表
A3: 部门：青岛市即墨区数字装备产业发展服务中心 | F3: 预算年度：2025 | H3: 金额单位：万元
A4: 序号 | B4: 支出功能分类科目 | D4: 合计 | E4: 基本支出 | H4: 项目支出
B5: 科目编码 | C5: 科目名称 | E5: 小计 | F5: 人员经费 | G5: 公用经费
A6: 栏次 | B6: 1 | C6: 2 | D6: 3 | E6: 4 | F6: 5 | G6: 6 | H6: 7
A7: 1 | C7: 合计 | D7: =E7+H7 -> 2299.98 | E7: =F7+G7 -> 446.98 | F7: =F8+F11+F18 -> 416.83 | G7: =G8 -> 30.15 | H7: =H8+H15 -> 1,853.00
A8: 2 | B8: 201 | C8: 一般公共服务支出 | D8: =E8+H8 -> 1450.92 | E8: =F8+G8 -> 350.92 | F8: =F9 -> 320.77 | G8: =G9 -> 30.15 | H8: =H9 -> 1,100.00
A9: 3 | B9: 20103 | C9: 政府办公厅（室）及相关机构事务 | D9: 1450.92 | E9: 350.92 | F9: =F10 -> 320.77 | G9: =G10 -> 30.15 | H9: =H10 -> 1,100.00
A10: 4 | B10: 2010350 | C10: 事业运行 | D10: 1450.92 | E10: 350.92 | F10: 320.77 | G10: 30.15 | H10: 1,100.00
A11: 5 | B11: 208 | C11: 社会保障和就业支出 | D11: 59.46 | E11: 59.46 | F11: =F12 -> 59.46 | G11: 0 | H11: 0
A12: 6 | B12: 20805 | C12: 行政事业单位养老支出 | D12: 59.46 | E12: 59.46 | F12: =F13+F14 -> 59.46 | G12: 0 | H12: 0
A13: 7 | B13: 2080505 | C13: 机关事业单位基本养老保险缴费支出 | D13: 39.64 | E13: 39.64 | F13: 39.64 | G13: 0 | H13: 0
A14: 8 | B14: 2080506 | C14: 机关事业单位职业年金缴费支出 | D14: 19.82 | E14: 19.82 | F14: 19.82 | G14: 0 | H14: 0
A15: 9 | B15: 212 | C15: 城乡社区支出 | D15: =H15 -> 753.00 | H15: =H16 -> 753.00
A16: 10 | B16: 21203 | C16: 城乡社区公共设施 | D16: =H16 -> 753.00 | H16: =H17 -> 753.00
A17: 11 | B17: 2120399 | C17: 其他城乡社区公共设施支出 | D17: =H17 -> 753.00 | H17: 753.00
A18: 12 | B18: 221 | C18: 住房保障支出 | D18: =E18+H18 -> 36.6 | E18: =F18+G18 -> 36.6 | F18: =F19 -> 36.60 | G18: 0 | H18: 0
A19: 13 | B19: 22102 | C19: 住房改革支出 | D19: =E19+H19 -> 36.6 | E19: =F19+G19 -> 36.6 | F19: =F20 -> 36.60 | G19: 0 | H19: 0
A20: 14 | B20: 2210201 | C20: 住房公积金 | D20: =E20+H20 -> 36.6 | E20: =F20+G20 -> 36.6 | F20: 36.60 | G20: 0 | H20: 0

Sheet 6-一般公共预算基本支出（部门经济分类）
A1: 表6：
A2: 2025年部门预算一般公共预算财政拨款基本支出表（部门经济分类）
A3: 部门：青岛市即墨区数字装备产业发展服务中心 | I3: 预算年度：2025 | K3: 金额单位：万元
A4: 序号 | B4: 科目编码 | C4: 科目名称 | D4: 支出项目 | G4: 资金性质
D5: 合计 | E5: 基本支出 | G5: 合计 | H5: 一般公共预算 | I5: 政府性基金预算 | J5: 国有资本经营预算 | K5: 财政专户核拨 | L5: 单位资金
E6: 人员经费 | F6: 日常公用经费
A7: 栏次 | B7: 1 | C7: 2 | D7: 3 | E7: 4 | F7: 5 | G7: 6 | H7: 7 | I7: 8 | J7: 9 | K7: 10 | L7: 11
A8: 1 | C8: 合计 | D8: =E8+F8 -> 446.98 | E8: =E9 -> 416.83 | F8: =F18 -> 30.15 | G8: =H8 -> 446.98 | H8: =H9+H18 -> 446.98
A9: 2 | B9: 301 | C9: 工资福利支出 | D9: =E9+F9 -> 416.83 | E9: =E10+E11+E12+E13+E14+E15+E16+E17 -> 416.83 | F9: 0 | G9: =H9 -> 416.83 | H9: =H10+H11+H12+H13+H14+H15+H16+H17 -> 416.83
A10: 3 | B10: 30101 | C10: 基本工资 | D10: 81.11 | E10: 81.11 | F10: 0 | G10: 81.11 | H10: 81.11
A11: 4 | B11: 30102 | C11: 津贴补贴 | D11: 119.88 | E11: 119.88 | F11: 0 | G11: 119.88 | H11: 119.88
A12: 5 | B12: 30107 | C12: 绩效工资 | D12: 90.72 | E12: 90.72 | F12: 0 | G12: 90.72 | H12: 90.72
A13: 6 | B13: 30108 | C13: 机关事业单位基本养老保险缴费 | D13: 39.64 | E13: 39.64 | F13: 0 | G13: 39.64 | H13: 39.64
A14: 7 | B14: 30109 | C14: 职业年金缴费 | D14: 19.82 | E14: 19.82 | F14: 0 | G14: 19.82 | H14: 19.82
A15: 8 | B15: 30110 | C15: 职工基本医疗保险缴费 | D15: 26.82 | E15: 26.82 | F15: 0 | G15: 26.82 | H15: 26.82
A16: 9 | B16: 30112 | C16: 其他社会保障缴费 | D16: 2.24 | E16: 2.24 | F16: 0 | G16: 2.24 | H16: 2.24
A17: 10 | B17: 30113 | C17: 住房公积金 | D17: 36.60 | E17: 36.60 | F17: 0 | G17: 36.60 | H17: 36.60
A18: 11 | B18: 302 | C18: 商品和服务支出 | D18: 30.15 | E18: 0 | F18: =F19+F20+F21+F22 -> 30.15 | G18: =H18 -> 30.15 | H18: =F18 -> 30.15
A19: 12 | B19: 30201 | C19: 办公费 | D19: 18.60 | E19: 0 | F19: 18.60 | G19: 15.52 | H19: 18.60
A20: 13 | B20: 30228 | C20: 工会经费 | D20: 3.00 | F20: 3.00 | H20: 3.00
A21: 14 | B21: 30231 | C21: 公务用车运行维护费 | D21: =E21+F21 -> 5.00 | E21: 0 | F21: 5.00 | G21: 5.00 | H21: 5.00
A22: 15 | B22: 30239 | C22: 其他交通费用 | D22: =E22+F22 -> 3.55 | E22: 0 | F22: 3.55 | G22: 3.56 | H22: 3.55
A23: 16
A24: 17
A25: 18
A26: 19
A27: 20
A28: 21
A29: 22
A30: 23
A31: 24
A32: 25
A33: 26
A34: 27
A35: 28
A36: 29
A37: 30
A38: 31

Sheet 7-一般公共预算基本支出（政府经济分类）
A1: 表7：
A2: 2025年部门预算一般公共预算财政拨款基本支出表（政府经济分类）
A3: 部门：青岛市即墨区数字装备产业发展服务中心 | I3: 预算年度：2025 | K3: 金额单位：万元
A4: 序号 | B4: 科目编码 | C4: 科目名称 | D4: 支出项目 | G4: 资金性质
D5: 合计 | E5: 基本支出 | G5: 合计 | H5: 一般公共预算 | I5: 政府性基金预算 | J5: 国有资本经营预算 | K5: 财政专户核拨 | L5: 单位资金
E6: 人员经费 | F6: 日常公用经费
A7: 栏次 | B7: 1 | C7: 2 | D7: 3 | E7: 4 | F7: 5 | G7: 6 | H7: 7 | I7: 8 | J7: 9 | K7: 10 | L7: 11
A8: 1 | C8: 合计 | D8: =E8+F8 -> 446.98 | E8: =E9 -> 416.83 | F8: =F9 -> 30.15 | G8: =H8 -> 446.98 | H8: =H9 -> 446.98
A9: 2 | B9: 505 | C9: 对事业单位经常性补助 | D9: =E9+F9 -> 446.98 | E9: =E10 -> 416.83 | F9: =F11 -> 30.15 | G9: =H9 -> 446.98 | H9: =H10+H11 -> 446.98
A10: 3 | B10: 50501 | C10: 工资福利支出 | D10: =E10+F10 -> 416.83 | E10: 416.83 | F10: 0 | G10: =H10 -> 416.83 | H10: 416.83
A11: 4 | B11: 50502 | C11: 商品和服务支出 | D11: =F11 -> 30.15 | E11: 0 | F11: 30.15 | G11: 24.08 | H11: 30.15
A12: 5 | E12: 0 | F12: 0
A13: 6 | E13: 0 | F13: 0
A14: 7 | F14: 0
A15: 8 | F15: 0
A16: 9 | F16: 0
A17: 10
A18: 11
A19: 12
A20: 13
A21: 14
A22: 15
A23: 16
A24: 17
A25: 18
A26: 19
A27: 20
A28: 21
A29: 22

Sheet 8-政府性基金财政拨款支出
A1: 表8：
A2: 2025年部门预算政府性基金预算财政拨款支出表
A3: 部门：青岛市即墨区数字装备产业发展服务中心 | E3: 预算年度：2025 | F3: 金额单位：万元
A4: 序号 | B4: 支出功能分类科目 | D4: 合计 | E4: 基本支出 | F4: 项目支出
A5: 栏次 | B5: 科目编码 | C5: 科目名称
A6: 栏次 | B6: 1 | C6: 2 | D6: 3 | E6: 4 | F6: 5
A7: 1 | C7: 合计 | D7: =E7+F7 -> 0 | F7: =F8 -> 0
A8: 2
A9: 3
A10: 4
A11: 5
A12: 6
A13: 7
A14: 8
A15: 9
A16: 10
A17: 11
A18: 12
A19: 13

Sheet 9-国有资本经营预算拨款支出
A1: 表9：
A2: 2025年部门预算国有资本经营预算财政拨款支出表
A3: 部门：青岛市即墨区数字装备产业发展服务中心 | E3: 预算年度：2025 | F3: 金额单位：万元
A4: 序号 | B4: 支出功能分类科目 | D4: 合计 | E4: 基本支出 | F4: 项目支出
B5: 科目编码 | C5: 科目名称
A6: 栏次 | B6: 1 | C6: 2 | D6: 3 | E6: 4 | F6: 5
A7: 1
A8: 2
A9: 3
A10: 4
A11: 5
A12: 6

Sheet 10-财政拨款“三公”经费支出
A1: 表10：
A2: 2025年部门预算财政拨款“三公”经费支出表
A3: 部门：青岛市即墨区数字装备产业发展服务中心 | E3: 预算年度：2025 | F3: 金额单位：万元
A4: 序号 | B4: 项目 | C4: 资金性质
C5: 合计 | D5: 一般公共预算财政拨款 | E5: 政府性基金财政拨款 | F5: 国有资本经营预算财政拨款
A6: 栏次 | B6: 1 | C6: 2 | D6: 3 | E6: 4 | F6: 5
A7: 1 | B7: 合计 | C7: 5 | D7: 5
A8: 2 | B8: “三公”经费合计 | C8: 5 | D8: 5
A9: 3 | B9: 一、因公出国"境"费
A10: 4 | B10: 二、公务用车购置及运维费 | C10: 5 | D10: 5
A11: 5 | B11: 其中:公务用车购置费
A12: 6 | B12: 公务用车运行维护费 | C12: 5 | D12: 5
A13: 7 | B13: 三、公务接待费
A14: 注释：1.因公出国（境）费用反映单位公务出国（境）的国际旅费、国外城市间交通费、住宿费、伙食费、培训费、公杂费等支出。 2.公务接待费反映单位按规定开支的各类公务接待（含外宾接待）费用。 3.公务用车购置反映公务用车购置支出（含车辆购置税、牌照费）。 4.公务用车运行维护费反映单位按规定保留的公务用车燃料费、维修费、过路过桥费、保险费、安全奖励费用等支出。 5.本部门“三公”经费增减变化情况、主要原因及其他需要说明的事项：

Sheet 附件3-采购预算表
A1: 附件3：
A2: 2025年政府采购预算表
A3: 部门：青岛市即墨区数字装备产业发展服务中心 | AP3: 预算年度：2025 | AR3: 金额单位： 万元
A4: 序号 | B4: 单位名称 | C4: 所属项目 | G4: 采购物品目录序号、物品名称 | H4: 采购类别 | I4: 采购物品产地 | J4: 产品规格 | K4: 计量单位 | L4: 单价 | M4: 数量 | N4: 当年部门预算安排资金 | AQ4: 预留份额 | AS4: 政府采购政策功能
C5: 项目类别 | D5: 项目编码、项目名称、功能分类编码、经济分类编码 | E5: 细目名称 | F5: 资金来源 | N5: 合计 | O5: 一般公共预算 | AB5: 政府性基金预算 | AG5: 国有资本经营预算 | AJ5: 财政专户管理 | AK5: 单位资金 | AQ5: 中小微企业预留份额 | AR5: 其中：小微企业预留
A6: rownum | B6: agencyname | C6: projexpendtype | D6: project | E6: projitemname | F6: bgtfundsource | G6: purchaseitem | H6: purcat | I6: purplace | J6: std | K6: units | L6: amtdanj | M6: quantity | O6: 小计 | P6: 事业费限额 | Q6: 非限额补助 | R6: 一般财力 | S6: 行政事业性收费 | T6: 专项收入 | U6: 国有资源（资产）有偿使用收入 | V6: 政府住房基金收入 | W6: 上级一般公共预算安排转移支付 | X6: 其他一般公共预算资金 | Y6: 一般债券 | Z6: 外国政府和国际组织贷款 | AA6: 外国政府和国际组织赠款 | AB6: 小计 | AC6: 政府性基金收入 | AD6: 专项债券对应项目专项收入 | AE6: 上级政府性基金预算安排转移支付 | AF6: 专项债券 | AG6: 小计 | AH6: 国有资本经营收入 | AI6: 上级国有资本经营预算安排转移支付 | AJ6: amtzhuanh_shb | AK6: 小计 | AL6: 事业收入资金 | AM6: 上级补助收入资金 | AN6: 附属单位上缴收入资金 | AO6: 事业单位经营收入资金 | AP6: 其他收入资金 | AQ6: amtylfe_zxw_shb | AR6: amtylfe_xw_shb | AS6: policyfunc
A7: 1 | B7: 合计 | N7: =O7 -> 45 | O7: =R7 -> 45 | R7: =R8+R9+R10+R11 -> 45
A8: 2 | C8: 货物类 | D8: JMCG2022004460 | E8: 即墨区环保众和小学内设配备采购项目 | F8: 一般公共预算资金 | H8: 公开招标 | N8: 10 | O8: 10 | R8: 10 | AS8: 中小企业,其他
A9: 3 | C9: 货物类 | D9: JMCG2022004460 | E9: 即墨区环保众和小学内设配备采购项目 | F9: 一般公共预算资金 | H9: 公开招标 | N9: 15 | O9: 15 | R9: 15
A10: 4 | C10: 货物类 | D10: JMCG2022004460 | E10: 即墨区环保众和小学内设配备采购项目 | F10: 一般公共预算资金 | H10: 公开招标 | N10: 10 | O10: 10 | R10: 10
A11: 5 | C11: 工程类 | D11: JMCG2022002718 | E11: 数字装备中心钱崮山二路南段道路延伸工程 | F11: 一般公共预算资金 | H11: 竞争性磋商 | N11: 10 | O11: 10 | R11: 10
A12: 6
A13: 7

Sheet 附件4政府购买服务
A1: 附件4：
A2: 2025年政府购买服务预算表
A3: 部门：青岛市即墨区数字装备产业发展服务中心 | H3: 预算年度：2025 | J3: 金额单位：万元
A4: 序号 | B4: 单位名称 | C4: 项目名称 | D4: 购买服务内容 | E4: 政府购买服务目录编码及名称 | F4: 功能分类科目 | G4: 支出管理方式 | H4: 资金性质 | I4: 是否包含政府采购 | J4: 购买数量 | K4: 购买金额
A8: 栏次 | B8: 2 | C8: 3 | D8: 4 | E8: 5 | F8: 6 | G8: 7 | H8: 8 | I8: 9 | J8: 10 | K8: 11
A9: 1
A10: 2
A11: 3
A12: 4
A13: 5
A14: 6
A15: 7
